[Event "Titled Tuesday Blitz May 16 Late 2023"]
[White "Schut, Han"]
[Black "Seletsky, Grigory"]
[WhiteFideId "1005561"]
[BlackFideId "14112191"]
[WhiteElo "2024"]
[BlackElo "2491"]
[Result "1-0"]
[Round "08"]
[TimeControl "180+2"]
[Date "2023.05.16"]
[WhiteClock "0:00:06"]
[BlackClock "0:00:00"]

1. e4 {[%clk 0:02:58]}  c5 {[%clk 0:02:59]} 2. Nf3 {[%clk 0:02:58]}  d6 {[%clk 0:02:58]} 3. d4 {[%clk 0:02:58]}  cxd4 {[%clk 0:02:59]} 4. Nxd4 {[%clk 0:02:59]}  Nf6 {[%clk 0:02:59]} 5. f3 {[%clk 0:03:00]}  e5 {[%clk 0:02:51]} 6. Bb5+ {[%clk 0:03:00]}  Nbd7 {[%clk 0:02:50]} 7. Nf5 {[%clk 0:03:01]}  d5 {[%clk 0:02:49]} 8. exd5 {[%clk 0:03:01]}  a6 {[%clk 0:02:44]} 9. Ba4 {[%clk 0:03:02]}  g6 {[%clk 0:02:29]} 10. Ne3 {[%clk 0:02:55]}  Bc5 {[%clk 0:02:23]} 11. c4 {[%clk 0:02:49]}  b5 {[%clk 0:02:19]} 12. cxb5 {[%clk 0:02:42]}  axb5 {[%clk 0:02:19]} 13. Bxb5 {[%clk 0:02:35]}  Qb6 {[%clk 0:02:14]} 14. Qe2 {[%clk 0:01:51]}  O-O {[%clk 0:02:11]} 15. Nc3 {[%clk 0:01:46]}  Re8 {[%clk 0:01:49]} 16. a4 {[%clk 0:01:32]}  e4 {[%clk 0:01:47]} 17. f4 {[%clk 0:01:31]}  Ba6 {[%clk 0:01:24]} 18. Bxa6 {[%clk 0:01:01]}  Rxa6 {[%clk 0:01:22]} 19. O-O {[%clk 0:00:56]}  Rea8 {[%clk 0:01:01]} 20. Kh1 {[%clk 0:00:55]}  Bd4 {[%clk 0:00:55]} 21. f5 {[%clk 0:00:37]}  Nc5 {[%clk 0:00:53]} 22. fxg6 {[%clk 0:00:30]}  hxg6 {[%clk 0:00:39]} 23. Nb5 {[%clk 0:00:30]}  Nb3 {[%clk 0:00:32]} 24. Rb1 {[%clk 0:00:10]}  Rxa4 {[%clk 0:00:27]} 25. Nxd4 {[%clk 0:00:10]}  Qxd4 {[%clk 0:00:19]} 26. Qf2 {[%clk 0:00:11]}  R4a6 {[%clk 0:00:17]} 27. h3 {[%clk 0:00:05]}  R8a7 {[%clk 0:00:13]} 28. Nc2 {[%clk 0:00:02]}  Qxf2 {[%clk 0:00:11]} 29. Rxf2 {[%clk 0:00:02]}  Nxd5 {[%clk 0:00:11]} 30. Nb4 {[%clk 0:00:03]}  Ra4 {[%clk 0:00:08]} 31. Nxd5 {[%clk 0:00:03]}  Rd7 {[%clk 0:00:07]} 32. Nf6+ {[%clk 0:00:03]}  Kg7 {[%clk 0:00:05]} 33. Nxd7 {[%clk 0:00:04]}  f5 {[%clk 0:00:05]} 34. Be3 {[%clk 0:00:02]}  Rc4 {[%clk 0:00:05]} 35. Ne5 {[%clk 0:00:02]}  Rc7 {[%clk 0:00:03]} 36. Rd1 {[%clk 0:00:01]}  Re7 {[%clk 0:00:03]} 37. Bd4 {[%clk 0:00:02]}  Nxd4 {[%clk 0:00:02]} 38. Rxd4 {[%clk 0:00:02]}  Rxe5 {[%clk 0:00:03]} 39. b4 {[%clk 0:00:03]}  e3 {[%clk 0:00:01]} 40. Re2 {[%clk 0:00:04]}  g5 {[%clk 0:00:02]} 41. g3 {[%clk 0:00:03]}  f4 {[%clk 0:00:02]} 42. gxf4 {[%clk 0:00:04]}  gxf4 {[%clk 0:00:02]} 43. Rxf4 {[%clk 0:00:05]}  Kg6 {[%clk 0:00:02]} 44. Kg2 {[%clk 0:00:04]}  Kg5 {[%clk 0:00:01]} 45. Kf3 {[%clk 0:00:05]}  Rd5 {[%clk 0:00:00]} 46. Rg4+ {[%clk 0:00:06]} 1-0


[Site "https://www.chess.com"]

[Event "Titled Tuesday Blitz May 16 Late 2023"]
[White "Vega Gutierrez, Sabrina"]
[Black "Vifleemskaia, Svetlana"]
[WhiteFideId "2219026"]
[BlackFideId "4129490"]
[WhiteElo "2209"]
[BlackElo "1930"]
[Result "1-0"]
[Round "08"]
[TimeControl "180+2"]
[Date "2023.05.16"]
[WhiteClock "0:00:25"]
[BlackClock "0:00:00"]

1. e4 {[%clk 0:03:00]}  e5 {[%clk 0:02:57]} 2. Nf3 {[%clk 0:03:01]}  Nc6 {[%clk 0:02:57]} 3. Nc3 {[%clk 0:03:00]}  Nf6 {[%clk 0:02:56]} 4. g3 {[%clk 0:03:00]}  d5 {[%clk 0:02:55]} 5. exd5 {[%clk 0:03:01]}  Nxd5 {[%clk 0:02:55]} 6. Bg2 {[%clk 0:03:02]}  Be7 {[%clk 0:02:55]} 7. Nxe5 {[%clk 0:02:53]}  Nxc3 {[%clk 0:02:45]} 8. Nxc6 {[%clk 0:02:53]}  Nxd1 {[%clk 0:02:34]} 9. Nxd8 {[%clk 0:02:52]}  Nxf2 {[%clk 0:02:32]} 10. Kxf2 {[%clk 0:02:34]}  Bxd8 {[%clk 0:02:28]} 11. Re1+ {[%clk 0:02:34]}  Kf8 {[%clk 0:02:25]} 12. d4 {[%clk 0:02:26]}  c6 {[%clk 0:02:14]} 13. Bf4 {[%clk 0:02:25]}  Be6 {[%clk 0:02:13]} 14. Rad1 {[%clk 0:02:08]}  Bf6 {[%clk 0:02:04]} 15. d5 {[%clk 0:02:05]}  cxd5 {[%clk 0:02:01]} 16. Bxd5 {[%clk 0:02:05]}  Re8 {[%clk 0:01:46]} 17. Bxe6 {[%clk 0:02:00]}  fxe6 {[%clk 0:01:41]} 18. Rd7 {[%clk 0:01:59]}  e5 {[%clk 0:01:36]} 19. Be3 {[%clk 0:01:56]}  b6 {[%clk 0:00:54]} 20. Rxa7 {[%clk 0:01:55]}  Re7 {[%clk 0:00:51]} 21. Bxb6 {[%clk 0:01:38]}  Rxa7 {[%clk 0:00:47]} 22. Bxa7 {[%clk 0:01:39]}  Kf7 {[%clk 0:00:48]} 23. Rd1 {[%clk 0:01:09]}  Ra8 {[%clk 0:00:43]} 24. Rd7+ {[%clk 0:01:08]}  Ke6 {[%clk 0:00:44]} 25. Rb7 {[%clk 0:01:08]}  e4 {[%clk 0:00:40]} 26. c3 {[%clk 0:01:02]}  Be7 {[%clk 0:00:24]} 27. Ke2 {[%clk 0:01:02]}  h5 {[%clk 0:00:17]} 28. a4 {[%clk 0:01:00]}  g5 {[%clk 0:00:13]} 29. a5 {[%clk 0:00:56]}  h4 {[%clk 0:00:12]} 30. b4 {[%clk 0:00:51]}  hxg3 {[%clk 0:00:11]} 31. hxg3 {[%clk 0:00:50]}  Bf6 {[%clk 0:00:08]} 32. Bd4 {[%clk 0:00:50]}  Bxd4 {[%clk 0:00:05]} 33. cxd4 {[%clk 0:00:50]}  Kd5 {[%clk 0:00:06]} 34. Ke3 {[%clk 0:00:42]}  Rf8 {[%clk 0:00:03]} 35. a6 {[%clk 0:00:42]}  Rf3+ {[%clk 0:00:03]} 36. Ke2 {[%clk 0:00:42]}  Kxd4 {[%clk 0:00:00]} 37. Rb5 {[%clk 0:00:25]} 1-0


[Site "https://www.chess.com"]

[Event "Titled Tuesday Blitz May 16 Late 2023"]
[White "Mikhalsky, Vladimir"]
[Black "De Souza, Cristiano Gomes"]
[WhiteFideId "14144352"]
[BlackFideId "2151758"]
[WhiteElo "2236"]
[BlackElo "2068"]
[Result "0-1"]
[Round "08"]
[TimeControl "180+2"]
[Date "2023.05.16"]
[WhiteClock "0:00:00"]
[BlackClock "0:01:15"]

1. d4 {[%clk 0:02:47]}  Nf6 {[%clk 0:02:59]} 2. c4 {[%clk 0:02:46]}  g6 {[%clk 0:02:59]} 3. f3 {[%clk 0:02:46]}  Bg7 {[%clk 0:02:59]} 4. e4 {[%clk 0:02:46]}  d6 {[%clk 0:03:00]} 5. Nc3 {[%clk 0:02:45]}  O-O {[%clk 0:03:00]} 6. Be3 {[%clk 0:02:45]}  a6 {[%clk 0:03:00]} 7. Qd2 {[%clk 0:02:43]}  Nc6 {[%clk 0:03:00]} 8. Nge2 {[%clk 0:02:42]}  Rb8 {[%clk 0:02:59]} 9. Rb1 {[%clk 0:02:42]}  b5 {[%clk 0:02:58]} 10. cxb5 {[%clk 0:02:42]}  axb5 {[%clk 0:02:59]} 11. b4 {[%clk 0:02:42]}  e6 {[%clk 0:02:53]} 12. Nc1 {[%clk 0:02:38]}  Na7 {[%clk 0:02:51]} 13. Nb3 {[%clk 0:02:34]}  c6 {[%clk 0:02:49]} 14. Be2 {[%clk 0:02:28]}  Bd7 {[%clk 0:02:46]} 15. O-O {[%clk 0:02:27]}  Nc8 {[%clk 0:02:46]} 16. Bf4 {[%clk 0:02:21]}  Ne8 {[%clk 0:02:41]} 17. e5 {[%clk 0:02:19]}  d5 {[%clk 0:02:35]} 18. Nc5 {[%clk 0:02:12]}  Nb6 {[%clk 0:02:35]} 19. Bg5 {[%clk 0:02:01]}  f6 {[%clk 0:02:28]} 20. exf6 {[%clk 0:02:00]}  Bxf6 {[%clk 0:02:26]} 21. Bh6 {[%clk 0:01:50]}  Ng7 {[%clk 0:02:26]} 22. Rfd1 {[%clk 0:01:45]}  e5 {[%clk 0:02:22]} 23. dxe5 {[%clk 0:01:39]}  Bxe5 {[%clk 0:02:22]} 24. f4 {[%clk 0:01:34]}  Bd6 {[%clk 0:02:19]} 25. Bg5 {[%clk 0:01:30]}  Be7 {[%clk 0:02:16]} 26. Bh6 {[%clk 0:01:18]}  Re8 {[%clk 0:02:14]} 27. Nxd7 {[%clk 0:01:15]}  Qxd7 {[%clk 0:02:14]} 28. h3 {[%clk 0:01:10]}  Nf5 {[%clk 0:02:13]} 29. Bg4 {[%clk 0:01:09]}  Nc4 {[%clk 0:02:06]} 30. Qf2 {[%clk 0:01:03]}  Bd8 {[%clk 0:02:03]} 31. Kh2 {[%clk 0:00:57]}  Bb6 {[%clk 0:02:01]} 32. Bxf5 {[%clk 0:00:43]}  Qxf5 {[%clk 0:01:59]} 33. Qh4 {[%clk 0:00:40]}  d4 {[%clk 0:01:50]} 34. Re1 {[%clk 0:00:29]}  dxc3 {[%clk 0:01:49]} 35. Re7 {[%clk 0:00:29]}  Rxe7 {[%clk 0:01:45]} 36. Qxe7 {[%clk 0:00:28]}  Qf7 {[%clk 0:01:45]} 37. Qe4 {[%clk 0:00:20]}  Bc7 {[%clk 0:01:44]} 38. Rf1 {[%clk 0:00:17]}  Re8 {[%clk 0:01:26]} 39. Qxc6 {[%clk 0:00:16]}  Ne3 {[%clk 0:01:23]} 40. Rf3 {[%clk 0:00:14]}  c2 {[%clk 0:01:22]} 41. Rxe3 {[%clk 0:00:06]}  Rxe3 {[%clk 0:01:22]} 42. Qxc2 {[%clk 0:00:04]}  Bxf4+ {[%clk 0:01:21]} 43. g3 {[%clk 0:00:03]}  Bxh6 {[%clk 0:01:16]} 44. Qc8+ {[%clk 0:00:01]}  Bf8 {[%clk 0:01:16]} 45. Qc6 {[%clk 0:00:00]}  Qf2+ {[%clk 0:01:15]} 0-1


[Site "https://www.chess.com"]

[Event "Titled Tuesday Blitz May 16 Late 2023"]
[White "reevecanada"]
[Black "rikchessmx"]
[WhiteElo "2386"]
[BlackElo "2232"]
[Result "1-0"]
[Round "08"]
[TimeControl "180+2"]
[Date "2023.05.16"]
[WhiteClock "0:01:20"]
[BlackClock "0:00:30"]

1. e4 {[%clk 0:03:00]}  c5 {[%clk 0:02:42]} 2. Nf3 {[%clk 0:02:59]}  e6 {[%clk 0:02:41]} 3. b3 {[%clk 0:02:58]}  d5 {[%clk 0:02:41]} 4. exd5 {[%clk 0:02:57]}  exd5 {[%clk 0:02:42]} 5. Bb5+ {[%clk 0:02:55]}  Nc6 {[%clk 0:02:42]} 6. O-O {[%clk 0:02:55]}  a6 {[%clk 0:02:41]} 7. Re1+ {[%clk 0:02:55]}  Be7 {[%clk 0:02:41]} 8. Bxc6+ {[%clk 0:02:54]}  bxc6 {[%clk 0:02:40]} 9. Bb2 {[%clk 0:02:54]}  Nf6 {[%clk 0:02:40]} 10. Ne5 {[%clk 0:02:53]}  Qd6 {[%clk 0:02:35]} 11. Qe2 {[%clk 0:02:51]}  Be6 {[%clk 0:02:35]} 12. Nf3 {[%clk 0:02:37]}  O-O {[%clk 0:02:33]} 13. Ng5 {[%clk 0:02:37]}  Ng4 {[%clk 0:02:11]} 14. Nf3 {[%clk 0:02:28]}  Bf6 {[%clk 0:02:06]} 15. Nc3 {[%clk 0:02:18]}  Rfe8 {[%clk 0:02:06]} 16. h3 {[%clk 0:02:16]}  Bd7 {[%clk 0:02:06]} 17. Qf1 {[%clk 0:02:14]}  Ne5 {[%clk 0:02:03]} 18. Nxe5 {[%clk 0:02:12]}  Bxe5 {[%clk 0:02:03]} 19. Rad1 {[%clk 0:02:08]}  Qf6 {[%clk 0:01:55]} 20. Ba1 {[%clk 0:02:02]}  Bf5 {[%clk 0:01:51]} 21. Na4 {[%clk 0:01:57]}  Bxc2 {[%clk 0:01:44]} 22. Rxe5 {[%clk 0:01:52]}  Rxe5 {[%clk 0:01:41]} 23. Rc1 {[%clk 0:01:52]}  Be4 {[%clk 0:01:30]} 24. f4 {[%clk 0:01:50]}  Qg6 {[%clk 0:01:28]} 25. fxe5 {[%clk 0:01:45]}  Bd3 {[%clk 0:01:28]} 26. Qf2 {[%clk 0:01:44]}  c4 {[%clk 0:01:28]} 27. Nc5 {[%clk 0:01:43]}  Bf5 {[%clk 0:01:25]} 28. Kh2 {[%clk 0:01:40]}  cxb3 {[%clk 0:01:24]} 29. axb3 {[%clk 0:01:41]}  a5 {[%clk 0:01:19]} 30. Bd4 {[%clk 0:01:40]}  h5 {[%clk 0:01:17]} 31. Rf1 {[%clk 0:01:39]}  Bc2 {[%clk 0:01:13]} 32. Qg3 {[%clk 0:01:32]}  Qh7 {[%clk 0:00:55]} 33. e6 {[%clk 0:01:28]}  f5 {[%clk 0:00:46]} 34. Qc7 {[%clk 0:01:21]}  a4 {[%clk 0:00:38]} 35. Qf7+ {[%clk 0:01:20]}  Kh8 {[%clk 0:00:38]} 36. e7 {[%clk 0:01:21]}  Qg8 {[%clk 0:00:37]} 37. Qxh5+ {[%clk 0:01:21]}  Qh7 {[%clk 0:00:30]} 38. e8=Q+ {[%clk 0:01:20]} 1-0


[Site "https://www.chess.com"]

[Event "Titled Tuesday Blitz May 16 Late 2023"]
[White "teresin05"]
[Black "Xia, Brandon"]
[BlackFideId "30921880"]
[WhiteElo "2198"]
[BlackElo "1924"]
[Result "0-1"]
[Round "08"]
[TimeControl "180+2"]
[Date "2023.05.16"]
[WhiteClock "0:00:01"]
[BlackClock "0:00:37"]

1. e4 {[%clk 0:02:57]}  g6 {[%clk 0:03:00]} 2. d4 {[%clk 0:02:57]}  Bg7 {[%clk 0:03:01]} 3. Nc3 {[%clk 0:02:48]}  d6 {[%clk 0:03:00]} 4. f4 {[%clk 0:02:48]}  a6 {[%clk 0:03:00]} 5. Nf3 {[%clk 0:02:48]}  b5 {[%clk 0:03:01]} 6. Bd3 {[%clk 0:02:28]}  Nd7 {[%clk 0:03:00]} 7. Be3 {[%clk 0:02:28]}  Bb7 {[%clk 0:02:58]} 8. Qd2 {[%clk 0:02:28]}  c5 {[%clk 0:02:53]} 9. dxc5 {[%clk 0:02:23]}  Nxc5 {[%clk 0:02:53]} 10. O-O-O {[%clk 0:02:00]}  Rc8 {[%clk 0:02:51]} 11. Kb1 {[%clk 0:01:47]}  Qa5 {[%clk 0:02:41]} 12. Nd5 {[%clk 0:01:26]}  Qxd2 {[%clk 0:02:33]} 13. Rxd2 {[%clk 0:01:25]}  Bxd5 {[%clk 0:02:13]} 14. exd5 {[%clk 0:00:58]}  Na4 {[%clk 0:02:10]} 15. c3 {[%clk 0:00:53]}  Nf6 {[%clk 0:02:09]} 16. Bc2 {[%clk 0:00:51]}  Nc5 {[%clk 0:02:08]} 17. Re1 {[%clk 0:00:46]}  O-O {[%clk 0:01:54]} 18. Bxc5 {[%clk 0:00:44]}  Rxc5 {[%clk 0:01:54]} 19. Rxe7 {[%clk 0:00:44]}  Nxd5 {[%clk 0:01:54]} 20. Re4 {[%clk 0:00:40]}  a5 {[%clk 0:01:16]} 21. g3 {[%clk 0:00:39]}  b4 {[%clk 0:01:16]} 22. Bb3 {[%clk 0:00:35]}  bxc3 {[%clk 0:01:15]} 23. Rxd5 {[%clk 0:00:33]}  cxb2 {[%clk 0:01:13]} 24. Rxc5 {[%clk 0:00:33]}  dxc5 {[%clk 0:01:14]} 25. Re7 {[%clk 0:00:30]}  Bf6 {[%clk 0:01:07]} 26. Rd7 {[%clk 0:00:15]}  a4 {[%clk 0:00:58]} 27. Bxa4 {[%clk 0:00:15]}  Re8 {[%clk 0:00:55]} 28. Bb3 {[%clk 0:00:13]}  Re3 {[%clk 0:00:54]} 29. Rxf7 {[%clk 0:00:12]}  Rxb3 {[%clk 0:00:46]} 30. Rxf6 {[%clk 0:00:12]}  Rxf3 {[%clk 0:00:46]} 31. Kxb2 {[%clk 0:00:12]}  Rf2+ {[%clk 0:00:47]} 32. Kb3 {[%clk 0:00:12]}  Rxh2 {[%clk 0:00:48]} 33. Rd6 {[%clk 0:00:06]}  Rh3 {[%clk 0:00:48]} 34. Rd3 {[%clk 0:00:06]}  h5 {[%clk 0:00:45]} 35. Kc4 {[%clk 0:00:04]}  h4 {[%clk 0:00:40]} 36. gxh4 {[%clk 0:00:05]}  Rxh4 {[%clk 0:00:40]} 37. Kxc5 {[%clk 0:00:05]}  Rxf4 {[%clk 0:00:41]} 38. Rg3 {[%clk 0:00:03]}  Kg7 {[%clk 0:00:40]} 39. Kb5 {[%clk 0:00:03]}  Rf2 {[%clk 0:00:40]} 40. a4 {[%clk 0:00:04]}  Rb2+ {[%clk 0:00:41]} 41. Kc5 {[%clk 0:00:02]}  Ra2 {[%clk 0:00:41]} 42. Kb6 {[%clk 0:00:02]}  Kh6 {[%clk 0:00:41]} 43. a5 {[%clk 0:00:02]}  g5 {[%clk 0:00:42]} 44. a6 {[%clk 0:00:03]}  Rb2+ {[%clk 0:00:42]} 45. Kc7 {[%clk 0:00:03]}  Ra2 {[%clk 0:00:42]} 46. Rb3 {[%clk 0:00:03]}  Rxa6 {[%clk 0:00:42]} 47. Rg3 {[%clk 0:00:03]}  Kh5 {[%clk 0:00:43]} 48. Rg1 {[%clk 0:00:03]}  g4 {[%clk 0:00:39]} 49. Rh1+ {[%clk 0:00:03]}  Kg5 {[%clk 0:00:39]} 50. Rg1 {[%clk 0:00:04]}  Kf4 {[%clk 0:00:35]} 51. Rf1+ {[%clk 0:00:03]}  Kg3 {[%clk 0:00:36]} 52. Rg1+ {[%clk 0:00:03]}  Kh3 {[%clk 0:00:36]} 53. Rh1+ {[%clk 0:00:03]}  Kg2 {[%clk 0:00:37]} 54. Rh5 {[%clk 0:00:03]}  g3 {[%clk 0:00:37]} 55. Rg5 {[%clk 0:00:04]}  Rf6 {[%clk 0:00:37]} 56. Kd7 {[%clk 0:00:04]}  Kf2 {[%clk 0:00:36]} 57. Ke7 {[%clk 0:00:04]}  Rf3 {[%clk 0:00:36]} 58. Ke6 {[%clk 0:00:01]}  g2 {[%clk 0:00:37]} 0-1


[Site "https://www.chess.com"]

[Event "Titled Tuesday Blitz May 16 Late 2023"]
[White "Goswami, Vedant"]
[Black "ritanovikova"]
[WhiteFideId "5003725"]
[WhiteElo "2011"]
[BlackElo "2144"]
[Result "1-0"]
[Round "08"]
[TimeControl "180+2"]
[Date "2023.05.16"]
[WhiteClock "0:00:15"]
[BlackClock "0:00:00"]

1. d4 {[%clk 0:03:00]}  e5 {[%clk 0:02:14]} 2. e3 {[%clk 0:02:57]}  exd4 {[%clk 0:02:13]} 3. exd4 {[%clk 0:02:57]}  d5 {[%clk 0:02:14]} 4. Nf3 {[%clk 0:02:55]}  Nf6 {[%clk 0:02:14]} 5. Ne5 {[%clk 0:02:54]}  Bd6 {[%clk 0:02:13]} 6. Bd3 {[%clk 0:02:53]}  h6 {[%clk 0:02:11]} 7. O-O {[%clk 0:02:52]}  O-O {[%clk 0:02:11]} 8. Re1 {[%clk 0:02:49]}  Re8 {[%clk 0:02:11]} 9. Bf4 {[%clk 0:02:41]}  Nbd7 {[%clk 0:02:09]} 10. Nd2 {[%clk 0:02:35]}  Nf8 {[%clk 0:02:06]} 11. Qf3 {[%clk 0:02:27]}  c5 {[%clk 0:01:56]} 12. dxc5 {[%clk 0:02:23]}  Bxc5 {[%clk 0:01:40]} 13. Nb3 {[%clk 0:02:22]}  Bb4 {[%clk 0:01:36]} 14. c3 {[%clk 0:02:19]}  Bd6 {[%clk 0:01:35]} 15. Rad1 {[%clk 0:02:17]}  Qc7 {[%clk 0:01:33]} 16. Nxf7 {[%clk 0:01:36]}  Rxe1+ {[%clk 0:01:25]} 17. Rxe1 {[%clk 0:01:33]}  Bxf4 {[%clk 0:01:19]} 18. g3 {[%clk 0:01:13]}  Bg4 {[%clk 0:00:59]} 19. Qg2 {[%clk 0:01:08]}  Qxf7 {[%clk 0:00:45]} 20. gxf4 {[%clk 0:01:07]}  Bh5 {[%clk 0:00:27]} 21. Nd4 {[%clk 0:01:06]}  Re8 {[%clk 0:00:20]} 22. Re5 {[%clk 0:01:01]}  Rxe5 {[%clk 0:00:19]} 23. fxe5 {[%clk 0:01:00]}  Ne4 {[%clk 0:00:19]} 24. Bxe4 {[%clk 0:00:56]}  dxe4 {[%clk 0:00:20]} 25. Qxe4 {[%clk 0:00:56]}  Qg6+ {[%clk 0:00:15]} 26. Qxg6 {[%clk 0:00:55]}  Bxg6 {[%clk 0:00:16]} 27. e6 {[%clk 0:00:52]}  Be8 {[%clk 0:00:11]} 28. f4 {[%clk 0:00:49]}  g6 {[%clk 0:00:11]} 29. f5 {[%clk 0:00:47]}  gxf5 {[%clk 0:00:10]} 30. e7 {[%clk 0:00:46]}  Ng6 {[%clk 0:00:09]} 31. Nxf5 {[%clk 0:00:46]}  h5 {[%clk 0:00:08]} 32. Nd6 {[%clk 0:00:44]}  Bf7 {[%clk 0:00:02]} 33. e8=Q+ {[%clk 0:00:40]}  Bxe8 {[%clk 0:00:02]} 34. Nxe8 {[%clk 0:00:40]}  Ne5 {[%clk 0:00:03]} 35. Nd6 {[%clk 0:00:38]}  b6 {[%clk 0:00:03]} 36. Nc8 {[%clk 0:00:37]}  a5 {[%clk 0:00:03]} 37. Nxb6 {[%clk 0:00:37]}  Nd3 {[%clk 0:00:03]} 38. b3 {[%clk 0:00:35]}  Nc1 {[%clk 0:00:03]} 39. Nc4 {[%clk 0:00:35]}  a4 {[%clk 0:00:03]} 40. bxa4 {[%clk 0:00:33]}  Nxa2 {[%clk 0:00:03]} 41. a5 {[%clk 0:00:32]}  Nxc3 {[%clk 0:00:04]} 42. Nd6 {[%clk 0:00:31]}  Nd5 {[%clk 0:00:02]} 43. a6 {[%clk 0:00:31]}  Nb6 {[%clk 0:00:02]} 44. Kf2 {[%clk 0:00:25]}  Kf8 {[%clk 0:00:02]} 45. Kg3 {[%clk 0:00:24]}  Ke7 {[%clk 0:00:03]} 46. Nb5 {[%clk 0:00:19]}  Kf6 {[%clk 0:00:00]} 47. Nc7 {[%clk 0:00:15]} 1-0


[Site "https://www.chess.com"]

[Event "Titled Tuesday Blitz May 16 Late 2023"]
[White "Torres Dominguez, David"]
[Black "Skaric, Djuro"]
[WhiteFideId "2220857"]
[BlackFideId "934569"]
[WhiteElo "1999"]
[BlackElo "2282"]
[Result "1-0"]
[Round "08"]
[TimeControl "180+2"]
[Date "2023.05.16"]
[WhiteClock "0:00:34"]
[BlackClock "0:00:28"]

1. e4 {[%clk 0:03:00]}  e6 {[%clk 0:02:59]} 2. d4 {[%clk 0:02:59]}  d5 {[%clk 0:02:59]} 3. exd5 {[%clk 0:03:00]}  exd5 {[%clk 0:02:59]} 4. Bd3 {[%clk 0:03:01]}  Bd6 {[%clk 0:02:59]} 5. Qf3 {[%clk 0:03:00]}  Ne7 {[%clk 0:02:58]} 6. Bf4 {[%clk 0:02:59]}  Nbc6 {[%clk 0:02:56]} 7. Ne2 {[%clk 0:02:59]}  Ng6 {[%clk 0:02:54]} 8. Bxd6 {[%clk 0:02:57]}  Qxd6 {[%clk 0:02:54]} 9. O-O {[%clk 0:02:52]}  O-O {[%clk 0:02:54]} 10. Nbc3 {[%clk 0:02:47]}  Nb4 {[%clk 0:02:51]} 11. Rac1 {[%clk 0:02:43]}  Nxd3 {[%clk 0:02:50]} 12. Qxd3 {[%clk 0:02:43]}  c6 {[%clk 0:02:50]} 13. Rfe1 {[%clk 0:02:42]}  Bd7 {[%clk 0:02:32]} 14. a3 {[%clk 0:02:41]}  Rae8 {[%clk 0:02:29]} 15. Qg3 {[%clk 0:02:40]}  Qe7 {[%clk 0:02:24]} 16. h3 {[%clk 0:02:35]}  f5 {[%clk 0:02:23]} 17. Nf4 {[%clk 0:02:34]}  Qxe1+ {[%clk 0:02:22]} 18. Rxe1 {[%clk 0:02:34]}  Rxe1+ {[%clk 0:02:21]} 19. Kh2 {[%clk 0:02:35]}  Ne7 {[%clk 0:02:11]} 20. Nce2 {[%clk 0:02:19]}  g6 {[%clk 0:02:06]} 21. Qe3 {[%clk 0:02:16]}  Nc8 {[%clk 0:02:04]} 22. Qd2 {[%clk 0:02:11]}  Ra1 {[%clk 0:01:59]} 23. Nd3 {[%clk 0:02:05]}  Nd6 {[%clk 0:01:57]} 24. f3 {[%clk 0:02:04]}  Re8 {[%clk 0:01:56]} 25. Ne5 {[%clk 0:02:04]}  Bc8 {[%clk 0:01:54]} 26. b3 {[%clk 0:02:00]}  Nf7 {[%clk 0:01:52]} 27. f4 {[%clk 0:01:47]}  Rxa3 {[%clk 0:01:50]} 28. Nc1 {[%clk 0:01:43]}  a5 {[%clk 0:01:37]} 29. Ncd3 {[%clk 0:01:41]}  Ra2 {[%clk 0:01:30]} 30. Nxf7 {[%clk 0:01:02]}  Kxf7 {[%clk 0:01:30]} 31. Ne5+ {[%clk 0:01:03]}  Kg7 {[%clk 0:01:28]} 32. Qc3 {[%clk 0:01:01]}  h6 {[%clk 0:01:17]} 33. h4 {[%clk 0:00:59]}  Be6 {[%clk 0:01:14]} 34. Qc5 {[%clk 0:00:55]}  a4 {[%clk 0:01:04]} 35. bxa4 {[%clk 0:00:53]}  Rxa4 {[%clk 0:01:04]} 36. Qb6 {[%clk 0:00:50]}  Re7 {[%clk 0:01:01]} 37. Qb3 {[%clk 0:00:48]}  Ra6 {[%clk 0:00:57]} 38. Kh3 {[%clk 0:00:43]}  Kf6 {[%clk 0:00:57]} 39. Qg3 {[%clk 0:00:37]}  Bf7 {[%clk 0:00:50]} 40. Qc3 {[%clk 0:00:35]}  g5 {[%clk 0:00:42]} 41. hxg5+ {[%clk 0:00:34]}  hxg5 {[%clk 0:00:42]} 42. fxg5+ {[%clk 0:00:34]}  Kxg5 {[%clk 0:00:41]} 43. Qg3+ {[%clk 0:00:35]}  Kf6 {[%clk 0:00:41]} 44. Qh4+ {[%clk 0:00:35]}  Ke6 {[%clk 0:00:42]} 45. Qh6+ {[%clk 0:00:35]}  Bg6 {[%clk 0:00:28]} 46. Qxg6# {[%clk 0:00:34]} 1-0


[Site "https://www.chess.com"]

[Event "Titled Tuesday Blitz May 16 Late 2023"]
[White "KorolDimitriy75"]
[Black "dorpato"]
[WhiteElo "2428"]
[BlackElo "2022"]
[Result "0-1"]
[Round "08"]
[TimeControl "180+2"]
[Date "2023.05.16"]
[WhiteClock "0:00:00"]
[BlackClock "0:01:12"]

1. d4 {[%clk 0:03:00]}  Nf6 {[%clk 0:02:57]} 2. c4 {[%clk 0:03:01]}  g6 {[%clk 0:02:56]} 3. Nc3 {[%clk 0:03:02]}  d5 {[%clk 0:02:57]} 4. cxd5 {[%clk 0:03:01]}  Nxd5 {[%clk 0:02:58]} 5. e4 {[%clk 0:03:02]}  Nxc3 {[%clk 0:02:58]} 6. bxc3 {[%clk 0:03:03]}  Bg7 {[%clk 0:02:58]} 7. Nf3 {[%clk 0:03:03]}  O-O {[%clk 0:02:58]} 8. Be2 {[%clk 0:03:02]}  c5 {[%clk 0:02:57]} 9. Rb1 {[%clk 0:03:03]}  cxd4 {[%clk 0:02:54]} 10. cxd4 {[%clk 0:03:03]}  Nc6 {[%clk 0:02:54]} 11. d5 {[%clk 0:03:03]}  Ne5 {[%clk 0:02:54]} 12. Nxe5 {[%clk 0:03:02]}  Bxe5 {[%clk 0:02:54]} 13. O-O {[%clk 0:03:02]}  b6 {[%clk 0:02:54]} 14. Bh6 {[%clk 0:03:00]}  Bg7 {[%clk 0:02:53]} 15. Bxg7 {[%clk 0:03:00]}  Kxg7 {[%clk 0:02:54]} 16. Qd4+ {[%clk 0:03:00]}  Kg8 {[%clk 0:02:53]} 17. f4 {[%clk 0:02:59]}  e6 {[%clk 0:02:52]} 18. Bc4 {[%clk 0:02:57]}  Bb7 {[%clk 0:02:52]} 19. f5 {[%clk 0:02:24]}  exd5 {[%clk 0:02:48]} 20. exd5 {[%clk 0:02:02]}  Qd6 {[%clk 0:02:46]} 21. Rbd1 {[%clk 0:01:44]}  Rac8 {[%clk 0:02:36]} 22. Bb3 {[%clk 0:01:31]}  Rc5 {[%clk 0:02:31]} 23. f6 {[%clk 0:01:17]}  Rd8 {[%clk 0:02:19]} 24. Rf3 {[%clk 0:00:57]}  a5 {[%clk 0:01:45]} 25. Qh4 {[%clk 0:00:19]}  Qf8 {[%clk 0:01:35]} 26. Rh3 {[%clk 0:00:14]}  h5 {[%clk 0:01:33]} 27. Qg5 {[%clk 0:00:14]}  a4 {[%clk 0:01:29]} 28. Bxa4 {[%clk 0:00:05]}  Rcxd5 {[%clk 0:01:28]} 29. Rxd5 {[%clk 0:00:04]}  Rxd5 {[%clk 0:01:27]} 30. Qf4 {[%clk 0:00:03]}  Qc5+ {[%clk 0:01:25]} 31. Re3 {[%clk 0:00:00]}  Rf5 {[%clk 0:01:12]} 0-1


[Site "https://www.chess.com"]